Workbook

Sheet Sheet1
A1: 抚州高新区2024年全省统一招聘教师面试入闱体检、政审人员名单
A2: 序号 | B2: 岗位代码 | C2: 招聘单位 | D2: 招聘岗位 | E2: 招聘人数 | F2: 姓名 | G2: 笔试 原始成绩 | H2: 折算后笔试成绩 | I2: 面试 原始成绩 | J2: 折算后面试成绩 | K2: 总成绩 | L2: 名次 | M2: 拟入闱体检、政审对象 | N2: 备注
A3: 1 | B3: 250160401010 | C3: 抚州高新技术产业开发区保育院 （含分园） | D3: 幼儿园 | E3: 6 | F3: 金雅芬 | G3: 85.5 | H3: =G3*(40/100) -> 34.20 | I3: 89 | J3: =I3*(60/100) -> 53.40 | K3: =H3+J3 -> 87.60 | L3: 1 | M3: 是
A4: 2 | B4: 250160401010 | F4: 何叔芳 | G4: 84.5 | H4: 33.80 | I4: 87 | J4: 52.20 | K4: 86.00 | L4: 2 | M4: 是
A5: 3 | B5: 250160401010 | F5: 吴维 | G5: 83 | H5: 33.20 | I5: 86.8 | J5: 52.08 | K5: 85.28 | L5: 3 | M5: 是
A6: 4 | B6: 250160401010 | F6: 胡美玲 | G6: 84 | H6: 33.60 | I6: 84.8 | J6: 50.88 | K6: 84.48 | L6: 4 | M6: 是
A7: 5 | B7: 250160401010 | F7: 潘雯 | G7: 81 | H7: 32.40 | I7: 86.4 | J7: 51.84 | K7: 84.24 | L7: 5 | M7: 是
A8: 6 | B8: 250160401010 | F8: 江露平 | G8: 79.5 | H8: =G8*(40/100) -> 31.80 | I8: 86.8 | J8: =I8*(60/100) -> 52.08 | K8: =H8+J8 -> 83.88 | L8: 6 | M8: 是
A9: 7 | B9: 250160401010 | F9: 杨蕾 | G9: 80 | H9: =G9*(40/100) -> 32.00 | I9: 86 | J9: =I9*(60/100) -> 51.60 | K9: =H9+J9 -> 83.60 | L9: 7
A10: 8 | B10: 250160401010 | F10: 徐振兰 | G10: 81.5 | H10: =G10*(40/100) -> 32.60 | I10: 83.4 | J10: =I10*(60/100) -> 50.04 | K10: =H10+J10 -> 82.64 | L10: 8
A11: 9 | B11: 250160401010 | F11: 陈芳菲 | G11: 80.5 | H11: =G11*(40/100) -> 32.20 | I11: 83.6 | J11: =I11*(60/100) -> 50.16 | K11: =H11+J11 -> 82.36 | L11: 9
A12: 10 | B12: 250160401010 | F12: 帅云云 | G12: 82.5 | H12: 33.00 | I12: 81.4 | J12: 48.84 | K12: 81.84 | L12: 10
A13: 11 | B13: 250160401010 | F13: 刘嘉玲 | G13: 80 | H13: 32.00 | I13: 82.4 | J13: 49.44 | K13: 81.44 | L13: 11
A14: 12 | B14: 250160401010 | F14: 严丹丹 | G14: 81 | H14: 32.40 | I14: 81.4 | J14: 48.84 | K14: 81.24 | L14: 12
A15: 13 | B15: 250160401010 | F15: 柳崇 | G15: 79.5 | H15: 31.80 | I15: 82.2 | J15: 49.32 | K15: 81.12 | L15: 13
A16: 14 | B16: 250160401010 | F16: 林娇 | G16: 80.5 | H16: 32.20 | I16: 79.4 | J16: 47.64 | K16: 79.84 | L16: 14
A17: 15 | B17: 250160401010 | F17: 余欣 | G17: 79.5 | H17: 31.80 | I17: 79.8 | J17: 47.88 | K17: 79.68 | L17: 15
A18: 16 | B18: 250160401011 | C18: 抚州高新技术产业开发区保育院 （含分园） | D18: 幼儿园 | E18: 4 | F18: 徐思文 | G18: 85.0 | H18: 34.00 | I18: 88.6 | J18: 53.16 | K18: 87.16 | L18: 1 | M18: 是
A19: 17 | B19: 250160401011 | F19: 李晴云 | G19: 83.0 | H19: 33.20 | I19: 88.1 | J19: 52.86 | K19: 86.06 | L19: 2 | M19: 是
A20: 18 | B20: 250160401011 | F20: 杨英 | G20: 78.5 | H20: 31.40 | I20: 90.8 | J20: 54.48 | K20: 85.88 | L20: 3 | M20: 是
A21: 19 | B21: 250160401011 | F21: 黄雨霜 | G21: 83.0 | H21: 33.20 | I21: 86.2 | J21: 51.72 | K21: 84.92 | L21: 4 | M21: 是
A22: 20 | B22: 250160401011 | F22: 姜蓉 | G22: 82.0 | H22: 32.80 | I22: 83.4 | J22: 50.04 | K22: 82.84 | L22: 5
A23: 21 | B23: 250160401011 | F23: 刘思佳 | G23: 79.0 | H23: 31.60 | I23: 85 | J23: 51.00 | K23: 82.60 | L23: 6
A24: 22 | B24: 250160401011 | F24: 洪佳旗 | G24: 83.0 | H24: 33.20 | I24: 81.4 | J24: 48.84 | K24: 82.04 | L24: 7
A25: 23 | B25: 250160401011 | F25: 陈心怡 | G25: 82.0 | H25: 32.80 | I25: 81.4 | J25: 48.84 | K25: 81.64 | L25: 8
A26: 24 | B26: 250160401011 | F26: 吴燕婷 | G26: 83.5 | H26: 33.40 | I26: 79.8 | J26: 47.88 | K26: 81.28 | L26: 9
A27: 25 | B27: 250160401011 | F27: 皮倩 | G27: 83.0 | H27: 33.20 | I27: 79 | J27: 47.40 | K27: 80.60 | L27: 10
A28: 26 | B28: 250160401011 | F28: 谢雨婷 | G28: 79.0 | H28: 31.60 | I28: 80.8 | J28: 48.48 | K28: 80.08 | L28: 11
A29: 27 | B29: 250160401011 | F29: 汪巧娥 | G29: 80.0 | H29: 32.00 | I29: 79.6 | J29: 47.76 | K29: 79.76 | L29: 12
A30: 28 | B30: 250160401011 | F30: 邹梦玲 | G30: 78.5 | H30: 31.40 | I30: 78.8 | J30: 47.28 | K30: 78.68 | L30: 13
